fUST/lending_fUST_20240201
["ID","MTS","AMOUNT","RATE_DAILY","PERIOD"]
[313075966,1706723439803,-587.54354726,0.0001657,2]
[313075968,1706723439813,-31458.25598576,0.00016583,2]
[313075970,1706723439824,-3327.29463854,0.00016876,2]
[313075973,1706723439837,-155.02325349,0.00017047,2]
[313075975,1706723439848,-330.0505798,0.00017047,2]
[313075977,1706723439860,-7829.55202312,0.00017047,2]
[313075979,1706723439872,-405.87364156,0.00017047,2]
[313075981,1706723439882,-611.41552988,0.00017047,2]
[313075983,1706723439893,-1000.0,0.00017052,2]
[313075985,1706723439903,-200.0,0.00017103,2]
[313075987,1706723439913,-155.06975138,0.00017957,2]
[313075990,1706723439924,-155.0,0.00017958,2]
[313075992,1706723439936,-630.98981671,0.00017958,2]
[313075994,1706723439947,-155.02169857,0.00017958,2]
[313075996,1706723439958,-1000.0300009,0.00017959,2]
[313075998,1706723439970,-16617.58723968,0.0001796,2]
[313076000,1706723439981,-280.0,0.00018814,2]
[313076003,1706723439992,-258.08743898,0.00019176,2]
[313076005,1706723440005,-260.77943967,0.00019176,2]
[313076007,1706723440016,-260.59518574,0.00019176,2]
[313076008,1706723440027,-303.78938381,0.00019176,2]
[313076010,1706723440037,-4364.40159177,0.00019176,2]
[313076012,1706723440049,-500.0,0.00019176,2]
[313076014,1706723440060,-18918.6330424,0.00019176,2]
[313076016,1706723440071,-181.08904402,0.00019177,2]
[313076017,1706723440081,-1695.42426361,0.00019177,2]
[313076018,1706723440093,-267.6416137,0.00019177,2]
[313076020,1706723440103,-1241.94572631,0.00019177,2]
[313076022,1706723440115,-1788.24233984,0.00019177,2]
[313076023,1706723440126,-208.5838023,0.00019177,2]
[313076024,1706723440137,-500.0,0.00019178,2]
[313076026,1706723440147,-500.0,0.00019178,2]
[313076029,1706723440159,-500.0,0.00019178,2]
[313076031,1706723440170,-500.0,0.00019178,2]
[313076033,1706723440180,-500.0,0.00019178,2]
[313076035,1706723440191,-500.0,0.00019178,2]
[313076037,1706723440203,-723.07,0.00019178,2]
[313076039,1706723440215,-500.0,0.00019178,2]
[313076041,1706723440227,-500.0,0.00019178,2]
[313076044,1706723440238,-500.0,0.00019178,2]
[313076046,1706723440250,-637.4,0.00019178,2]
[313076048,1706723440262,-500.0,0.00019178,2]
[313076050,1706723440273,-3050.29,0.00019178,2]
[313076052,1706723440284,-500.0,0.00019178,2]
[313076054,1706723440296,-500.0,0.00019178,2]
[313076056,1706723440306,-500.0,0.00019178,2]
[313076060,1706723440319,-581.45,0.00019178,2]
[313076063,1706723440330,-590.37,0.00019178,2]
[313076067,1706723440342,-500.0,0.00019178,2]
[313076070,1706723440353,-500.0,0.00019178,2]
[313076072,1706723440365,-500.0,0.00019178,2]
[313076075,1706723440377,-500.0,0.00019178,2]
[313076089,1706723440507,-500.0,0.00019178,2]
[313076092,1706723440519,-998.61,0.00019178,2]
[313076094,1706723440528,-500.0,0.00019178,2]
[313076096,1706723440537,-1165.88,0.00019178,2]
[313076098,1706723440546,-568.35400767,0.00019178,2]
[313076100,1706723440555,-500.0,0.00019178,2]
[313076102,1706723440564,-542.32133494,0.00019178,2]
[313076104,1706723440573,-500.0,0.00019178,2]
[313076105,1706723440583,-500.0,0.00019178,2]
[313076108,1706723440592,-500.0,0.00019178,2]
[313076109,1706723440600,-500.0,0.00019178,2]
[313076111,1706723440611,-500.0,0.00019178,2]
[313076113,1706723440619,-500.0,0.00019178,2]
[313076115,1706723440628,-500.0,0.00019178,2]
[313076117,1706723440638,-620.94,0.00019178,2]
[313076119,1706723440647,-453.08497735,0.00019178,2]
[313076121,1706723440656,-500.0,0.00019178,2]
[313076123,1706723440665,-500.0,0.00019178,2]
[313076125,1706723440674,-500.0,0.00019178,2]
[313076127,1706723440683,-882.07,0.00019178,2]
[313076129,1706723440692,-6433.41,0.00019178,2]
[313076131,1706723440700,-618.8,0.00019178,2]
[313076133,1706723440709,-500.0,0.00019178,2]
[313076135,1706723440719,-655.97,0.00019178,2]
[313076137,1706723440728,-500.0,0.00019178,2]
[313076139,1706723440737,-424.25997704,0.00019178,2]
[313076140,1706723440746,-558.02,0.00019178,2]
[313076142,1706723440756,-9545.75,0.00019178,2]
[313076144,1706723440765,-500.0,0.00019178,2]
[313076145,1706723440774,-500.0,0.00019178,2]
[313076147,1706723440783,-500.0,0.00019178,2]
[313076148,1706723440792,-500.0,0.00019178,2]
[313076149,1706723440802,-500.0,0.00019178,2]
[313076150,1706723440811,-500.0,0.00019178,2]
[313076151,1706723440820,-509.16728415,0.00019178,2]
[313076152,1706723440829,-500.0,0.00019178,2]
[313076153,1706723440838,-2718.43,0.00019178,2]
[313076154,1706723440847,-500.0,0.00019178,2]
[313076155,1706723440857,-500.0,0.00019178,2]
[313076156,1706723440866,-940.88,0.00019178,2]
[313076157,1706723440875,-500.0,0.00019178,2]
[313076158,1706723440884,-976.92,0.00019178,2]
[313076159,1706723440893,-1815.87,0.00019178,2]
[313076160,1706723440902,-342.75143032,0.00019178,2]
[313076162,1706723440911,-2514.62,0.00019178,2]
[313076163,1706723440920,-3030.0,0.00019178,2]
[313076165,1706723440929,-2230.8,0.00019178,2]
[313076167,1706723440938,-500.0,0.00019178,2]
[313076168,1706723440948,-500.0,0.00019178,2]
[313076170,1706723440957,-500.0,0.00019178,2]
[313076172,1706723440967,-1461.53,0.00019178,2]
[313076174,1706723440976,-1272.75,0.00019178,2]
[313076175,1706723440985,-1367.79,0.00019178,2]
[313076177,1706723440994,-500.0,0.00019178,2]
[313076178,1706723441004,-500.0,0.00019178,2]
[313076179,1706723441013,-500.0,0.00019178,2]
[313076180,1706723441022,-500.0,0.00019178,2]
[313076181,1706723441031,-522.02,0.00019178,2]
[313076182,1706723441041,-500.0,0.00019178,2]
[313076183,1706723441049,-500.0,0.00019178,2]
[313076184,1706723441058,-1174.04,0.00019178,2]
[313076185,1706723441067,-6739.26,0.00019178,2]
[313076186,1706723441077,-1214.85,0.00019178,2]
[313076187,1706723441086,-13589.39,0.00019178,2]
[313076188,1706723441095,-2002.38,0.00019178,2]
[313076189,1706723441104,-991.89,0.00019178,2]
[313076190,1706723441113,-500.0,0.00019178,2]
[313076191,1706723441122,-500.0,0.00019178,2]
[313076192,1706723441131,-500.0,0.00019178,2]
[313076193,1706723441141,-1793.74,0.00019178,2]
[313076194,1706723441152,-500.0,0.00019178,2]
[313076195,1706723441161,-500.0,0.00019178,2]
[313076196,1706723441170,-1104.21,0.00019178,2]
[313076197,1706723441179,-1095.66,0.00019178,2]
[313076198,1706723441188,-1820.76,0.00019178,2]
[313076199,1706723441199,-500.0,0.00019178,2]
[313076200,1706723441212,-3598.82,0.00019178,2]
[313076201,1706723441221,-500.0,0.00019178,2]
[313076202,1706723441230,-500.0,0.00019178,2]
[313076203,1706723441239,-165.629364,0.00019178,2]
[313076204,1706723441249,-155.54012825,0.00019449,2]
[313076205,1706723441258,-1267.85460751,0.00019449,2]
[313076206,1706723441267,-2023.84254162,0.00019449,2]
[313076207,1706723441276,-262.54949426,0.00019449,2]
[313076208,1706723441286,-543.49716422,0.00019449,2]
[313076209,1706723441295,-155.0,0.00019449,2]
[313076210,1706723441305,-155.70064313,0.00019449,2]
[313076211,1706723441314,-6044.26530748,0.00019449,2]
[313076212,1706723441324,-155.26319905,0.00019449,2]
[313076214,1706723441333,-155.0356507,0.00019449,2]
[313076216,1706723441343,-500.0,0.00019452,2]
[313076217,1706723441352,-500.0,0.00019452,2]
[313076218,1706723441363,-500.0,0.00019452,2]
[313076219,1706723441372,-500.0,0.00019452,2]
[313076220,1706723441381,-500.0,0.00019452,2]
[313076221,1706723441390,-500.0,0.00019452,2]
[313076222,1706723441400,-723.07,0.00019452,2]
[313076223,1706723441409,-500.0,0.00019452,2]
[313076224,1706723441418,-500.0,0.00019452,2]
[313076225,1706723441427,-637.4,0.00019452,2]
[313076226,1706723441437,-500.0,0.00019452,2]
[313076227,1706723441446,-500.0,0.00019452,2]
[313076228,1706723441455,-500.0,0.00019452,2]
[313076229,1706723441464,-500.0,0.00019452,2]
[313076230,1706723441473,-581.45,0.00019452,2]
[313076231,1706723441483,-590.37,0.00019452,2]
[313076232,1706723441491,-500.0,0.00019452,2]
[313076233,1706723441500,-500.0,0.00019452,2]
[313076234,1706723441509,-500.0,0.00019452,2]
[313076235,1706723441518,-998.61,0.00019452,2]
[313076236,1706723441527,-1165.88,0.00019452,2]
[313076237,1706723441536,-171.81118109,0.00019452,2]
[313076238,1706723441546,-500.0,0.00019452,2]
[313076239,1706723441555,-500.0,0.00019452,2]
[313076240,1706723441564,-250.07075875,0.00019452,2]
[313076241,1706723441573,-500.0,0.00019452,2]
[313076242,1706723441582,-500.0,0.00019452,2]
[313076243,1706723441592,-620.94,0.00019452,2]
[313076244,1706723441601,-500.0,0.00019452,2]
[313076245,1706723441610,-500.0,0.00019452,2]
[313076246,1706723441619,-500.0,0.00019452,2]
[313076247,1706723441628,-882.07,0.00019452,2]
[313076248,1706723441638,-6433.41,0.00019452,2]
[313076249,1706723441647,-618.8,0.00019452,2]
[313076250,1706723441656,-500.0,0.00019452,2]
[313076251,1706723441665,-655.97,0.00019452,2]
[313076252,1706723441675,-500.0,0.00019452,2]
[313076253,1706723441684,-558.02,0.00019452,2]
[313076254,1706723441693,-9545.75,0.00019452,2]
[313076255,1706723441702,-500.0,0.00019452,2]
[313076256,1706723441711,-500.0,0.00019452,2]
[313076257,1706723441720,-500.0,0.00019452,2]
[313076258,1706723441729,-500.0,0.00019452,2]
[313076259,1706723441739,-500.0,0.00019452,2]
[313076260,1706723441748,-2718.43,0.00019452,2]
[313076261,1706723441757,-500.0,0.00019452,2]
[313076262,1706723441767,-500.0,0.00019452,2]
[313076263,1706723441776,-940.88,0.00019452,2]
[313076264,1706723441786,-241.17774505,0.00019452,2]
[313076265,1706723441795,-976.92,0.00019452,2]
[313076266,1706723441804,-1815.87,0.00019452,2]
[313076267,1706723441814,-2514.62,0.00019452,2]
[313076268,1706723441823,-3030.0,0.00019452,2]
[313076269,1706723441833,-2230.8,0.00019452,2]
[313076270,1706723441842,-500.0,0.00019452,2]
[313076271,1706723441852,-500.0,0.00019452,2]
[313076272,1706723441862,-1461.53,0.00019452,2]
[313076273,1706723441871,-1272.75,0.00019452,2]
[313076274,1706723441880,-1367.79,0.00019452,2]
[313076275,1706723441889,-522.02,0.00019452,2]
[313076276,1706723441899,-500.0,0.00019452,2]
[313076277,1706723441908,-427.04037808,0.00019452,2]
[313076278,1706723441918,-1174.04,0.00019452,2]
[313076279,1706723441927,-6739.26,0.00019452,2]
[313076280,1706723441936,-1214.85,0.00019452,2]
[313076281,1706723441945,-13589.39,0.00019452,2]
[313076282,1706723441954,-2002.38,0.00019452,2]
[313076283,1706723441964,-500.0,0.00019452,2]
[313076284,1706723441973,-991.89,0.00019452,2]
[313076285,1706723441982,-500.0,0.00019452,2]
[313076286,1706723441992,-500.0,0.00019452,2]
[313076287,1706723442001,-500.0,0.00019452,2]
[313076288,1706723442010,-1793.74,0.00019452,2]
[313076289,1706723442020,-500.0,0.00019452,2]
[313076290,1706723442029,-500.0,0.00019452,2]
[313076291,1706723442039,-1104.21,0.00019452,2]
[313076292,1706723442048,-1095.66,0.00019452,2]
[313076293,1706723442057,-1820.76,0.00019452,2]
[313076294,1706723442066,-500.0,0.00019452,2]
[313076295,1706723442076,-3598.82,0.00019452,2]
[313076296,1706723442085,-500.0,0.00019452,2]
[313076297,1706723442094,-153.0000001,0.00019589,2]
[313076298,1706723442103,-153.0,0.00019589,2]
[313076299,1706723442114,-153.0,0.00019589,2]
[313076300,1706723442123,-153.0,0.00019589,2]
[313076301,1706723442132,-153.0,0.00019589,2]
[313076302,1706723442142,-500.0,0.00019726,2]
[313076303,1706723442151,-500.0,0.00019726,2]
[313076304,1706723442160,-310.15523794,0.00019726,2]
[313076305,1706723442170,-500.0,0.00019726,2]
[313076306,1706723442179,-186.8035473,0.00019726,2]
[313076307,1706723442189,-500.0,0.00019726,2]
[313076308,1706723442203,-723.07,0.00019726,2]
[313076309,1706723442212,-637.4,0.00019726,2]
[313076310,1706723442221,-500.0,0.00019726,2]
[313076311,1706723442231,-500.0,0.00019726,2]
[313076312,1706723442240,-500.0,0.00019726,2]
[313076313,1706723442253,-500.0,0.00019726,2]
[313076314,1706723442263,-581.45,0.00019726,2]
[313076315,1706723442274,-590.37,0.00019726,2]
[313076316,1706723442284,-500.0,0.00019726,2]
[313076317,1706723442293,-500.0,0.00019726,2]
[313076318,1706723442302,-500.0,0.00019726,2]
[313076319,1706723442311,-998.61,0.00019726,2]
[313076320,1706723442321,-1165.88,0.00019726,2]
[313076321,1706723442330,-500.0,0.00019726,2]
[313076322,1706723442340,-500.0,0.00019726,2]
[313076323,1706723442349,-500.0,0.00019726,2]
[313076324,1706723442360,-620.94,0.00019726,2]
[313076325,1706723442370,-500.0,0.00019726,2]
[313076326,1706723442380,-500.0,0.00019726,2]
[313076327,1706723442389,-882.07,0.00019726,2]
[313076328,1706723442398,-6433.41,0.00019726,2]
[313076329,1706723442407,-618.8,0.00019726,2]
[313076330,1706723442416,-500.0,0.00019726,2]
[313076331,1706723442425,-655.97,0.00019726,2]
[313076332,1706723442434,-423.32,0.00019726,2]
[313076333,1706723442444,-558.02,0.00019726,2]
[313076334,1706723442453,-9545.75,0.00019726,2]
[313076335,1706723442462,-500.0,0.00019726,2]
[313076336,1706723442471,-500.0,0.00019726,2]
[313076337,1706723442480,-500.0,0.00019726,2]
[313076338,1706723442489,-500.0,0.00019726,2]
[313076339,1706723442499,-2718.43,0.00019726,2]
[313076340,1706723442508,-500.0,0.00019726,2]
[313076341,1706723442594,-500.0,0.00019726,2]
[313076342,1706723442604,-940.88,0.00019726,2]
[313076343,1706723442614,-976.92,0.00019726,2]
[313076344,1706723442623,-1815.87,0.00019726,2]
[313076345,1706723442633,-2514.62,0.00019726,2]
[313076346,1706723442642,-3030.0,0.00019726,2]
[313076347,1706723442651,-2230.8,0.00019726,2]
[313076348,1706723442661,-500.0,0.00019726,2]
[313076349,1706723442670,-500.0,0.00019726,2]
[313076350,1706723442680,-1461.53,0.00019726,2]
[313076351,1706723442689,-1272.75,0.00019726,2]
[313076352,1706723442699,-1367.79,0.00019726,2]
[313076353,1706723442708,-522.02,0.00019726,2]
[313076354,1706723442717,-500.0,0.00019726,2]
[313076355,1706723442726,-1174.04,0.00019726,2]
[313076356,1706723442735,-6739.26,0.00019726,2]
[313076357,1706723442745,-1214.85,0.00019726,2]
[313076358,1706723442754,-13589.39,0.00019726,2]
[313076359,1706723442762,-2002.38,0.00019726,2]
[313076360,1706723442772,-991.89,0.00019726,2]
[313076361,1706723442781,-500.0,0.00019726,2]
[313076362,1706723442790,-500.0,0.00019726,2]
[313076363,1706723442799,-500.0,0.00019726,2]
[313076364,1706723442809,-1793.74,0.00019726,2]
[313076365,1706723442819,-500.0,0.00019726,2]
[313076366,1706723442828,-500.0,0.00019726,2]
[313076367,1706723442838,-1104.21,0.00019726,2]
[313076368,1706723442847,-1095.66,0.00019726,2]
[313076369,1706723442857,-1820.76,0.00019726,2]
[313076370,1706723442866,-500.0,0.00019726,2]
[313076371,1706723442876,-3598.82,0.00019726,2]
[313076372,1706723442885,-500.0,0.00019726,2]
[313076373,1706723442895,-665.12936154,0.00019874,2]
[313076374,1706723442904,-13261.95075509,0.000199,2]
[313076375,1706723442913,-500.0,0.0002,2]
[313076376,1706723442921,-44380.68568654,0.0002,2]
[313076377,1706723442930,-200.0,0.0002,2]
[313076378,1706723442939,-155.01860223,0.0002,2]
[313076379,1706723442948,-155.01860223,0.0002,2]
[313076380,1706723442957,-155.01860223,0.0002,2]
[313076381,1706723442966,-178.21239998,0.0002,2]
[313076382,1706723442975,-500.0,0.0002,2]
[313076383,1706723442985,-1200.08348294,0.0002,2]
[313076384,1706723442995,-323.57048434,0.0002,2]
[313076385,1706723443005,-500.0,0.0002,2]
[313076386,1706723443014,-500.0,0.0002,2]
[313076387,1706723443023,-723.07,0.0002,2]
[313076388,1706723443033,-637.4,0.0002,2]
[313076389,1706723443042,-500.0,0.0002,2]
[313076391,1706723443051,-331.03874954,0.0002,2]
[313076392,1706723443060,-500.0,0.0002,2]
[313076393,1706723443069,-500.0,0.0002,2]
[313076394,1706723443079,-581.45,0.0002,2]
[313076395,1706723443089,-590.37,0.0002,2]
[313076396,1706723443098,-500.0,0.0002,2]
[313076398,1706723443107,-500.0,0.0002,2]
[313076399,1706723443116,-500.0,0.0002,2]
[313076401,1706723443126,-998.61,0.0002,2]
[313076402,1706723443135,-1165.88,0.0002,2]
[313076403,1706723443145,-500.0,0.0002,2]
[313076404,1706723443156,-500.0,0.0002,2]
[313076405,1706723443167,-620.94,0.0002,2]
[313076406,1706723443177,-500.0,0.0002,2]
[313076407,1706723443188,-258.58735297,0.0002,2]
[313076408,1706723443197,-882.07,0.0002,2]
[313076409,1706723443208,-6433.41,0.0002,2]
[313076410,1706723443217,-618.8,0.0002,2]
[313076412,1706723443226,-500.0,0.0002,2]
[313076414,1706723443235,-655.97,0.0002,2]
[313076416,1706723443244,-558.02,0.0002,2]
[313076417,1706723443254,-9545.75,0.0002,2]
[313076418,1706723443263,-500.0,0.0002,2]
[313076419,1706723443272,-500.0,0.0002,2]
[313076420,1706723443281,-500.0,0.0002,2]
[313076421,1706723443291,-500.0,0.0002,2]
[313076422,1706723443300,-2718.43,0.0002,2]
[313076423,1706723443309,-534.97764921,0.0002,2]
[313076424,1706723443320,-500.0,0.0002,2]
[313076425,1706723443329,-940.88,0.0002,2]
[313076426,1706723443339,-976.92,0.0002,2]
[313076427,1706723443348,-1815.87,0.0002,2]
[313076428,1706723443358,-2514.62,0.0002,2]
[313076429,1706723443367,-3030.0,0.0002,2]
[313076430,1706723443376,-2230.8,0.0002,2]
[313076431,1706723443386,-500.0,0.0002,2]
[313076432,1706723443395,-500.0,0.0002,2]
[313076433,1706723443404,-1461.53,0.0002,2]
[313076434,1706723443413,-1272.75,0.0002,2]
[313076435,1706723443422,-1367.79,0.0002,2]
[313076436,1706723443432,-522.02,0.0002,2]
[313076438,1706723443441,-500.0,0.0002,2]
[313076439,1706723443450,-1174.04,0.0002,2]
[313076440,1706723443460,-6739.26,0.0002,2]
[313076441,1706723443469,-1214.85,0.0002,2]
[313076442,1706723443479,-13589.39,0.0002,2]
[313076443,1706723443488,-2002.38,0.0002,2]
[313076444,1706723443497,-991.89,0.0002,2]
[313076445,1706723443507,-500.0,0.0002,2]
[313076446,1706723443517,-500.0,0.0002,2]
[313076447,1706723443527,-500.0,0.0002,2]
[313076448,1706723443537,-1793.74,0.0002,2]
[313076449,1706723443547,-500.0,0.0002,2]
[313076450,1706723443557,-500.0,0.0002,2]
[313076451,1706723443566,-1104.21,0.0002,2]
[313076452,1706723443576,-1095.66,0.0002,2]
[313076453,1706723443586,-1820.76,0.0002,2]
[313076454,1706723443596,-500.0,0.0002,2]
[313076455,1706723443606,-3598.82,0.0002,2]
[313076456,1706723443619,-500.0,0.0002,2]
[313076457,1706723443629,-912.2318278,0.00020075,2]
[313076458,1706723443639,-216.28260831,0.00020273,2]
[313076459,1706723443649,-500.0,0.00020273,2]
[313076460,1706723443659,-500.0,0.00020273,2]
[313076461,1706723443669,-723.07,0.00020273,2]
[313076462,1706723443680,-637.4,0.00020273,2]
[313076463,1706723443689,-500.0,0.00020273,2]
[313076464,1706723443698,-500.0,0.00020273,2]
[313076465,1706723443707,-500.0,0.00020273,2]
[313076466,1706723443716,-581.45,0.00020273,2]
[313076467,1706723443725,-590.37,0.00020273,2]
[313076468,1706723443734,-372.95353061,0.00020273,2]
[313076469,1706723443744,-500.0,0.00020273,2]
[313076470,1706723443753,-500.0,0.00020273,2]
[313076471,1706723443762,-998.61,0.00020273,2]
[313076472,1706723443771,-1165.88,0.00020273,2]
[313076473,1706723443780,-500.0,0.00020273,2]
[313076474,1706723443790,-500.0,0.00020273,2]
[313076475,1706723443799,-620.94,0.00020273,2]
[313076476,1706723443808,-296.71682223,0.00020273,2]
[313076477,1706723443817,-882.07,0.00020273,2]
[313076478,1706723443827,-6433.41,0.00020273,2]
[313076479,1706723443836,-618.8,0.00020273,2]
[313076480,1706723443845,-500.0,0.00020273,2]
[313076481,1706723443854,-655.97,0.00020273,2]
[313076482,1706723443865,-558.02,0.00020273,2]
[313076483,1706723443874,-9545.75,0.00020273,2]
[313076484,1706723443883,-500.0,0.00020273,2]
[313076485,1706723443891,-500.0,0.00020273,2]
[313076486,1706723443901,-500.0,0.00020273,2]
[313076487,1706723443911,-500.0,0.00020273,2]
[313076488,1706723443921,-2718.43,0.00020273,2]
[313076489,1706723443930,-500.0,0.00020273,2]
[313076490,1706723443939,-940.88,0.00020273,2]
[313076491,1706723443948,-976.92,0.00020273,2]
[313076492,1706723443957,-1815.87,0.00020273,2]
[313076493,1706723443966,-2514.62,0.00020273,2]
[313076494,1706723443975,-3030.0,0.00020273,2]
[313076495,1706723443984,-2230.8,0.00020273,2]
[313076496,1706723443994,-500.0,0.00020273,2]
[313076497,1706723444002,-500.0,0.00020273,2]
[313076498,1706723444012,-1461.53,0.00020273,2]
[313076499,1706723444021,-1272.75,0.00020273,2]
[313076500,1706723444030,-1367.79,0.00020273,2]
[313076501,1706723444039,-522.02,0.00020273,2]
[313076502,1706723444048,-500.0,0.00020273,2]
[313076503,1706723444057,-1174.04,0.00020273,2]
[313076504,1706723444066,-6739.26,0.00020273,2]
[313076505,1706723444076,-1214.85,0.00020273,2]
[313076506,1706723444085,-13589.39,0.00020273,2]
[313076507,1706723444094,-2002.38,0.00020273,2]
[313076508,1706723444103,-991.89,0.00020273,2]
[313076509,1706723444112,-500.0,0.00020273,2]
[313076510,1706723444121,-500.0,0.00020273,2]
[313076511,1706723444130,-500.0,0.00020273,2]
[313076512,1706723444139,-1793.74,0.00020273,2]
[313076513,1706723444148,-500.0,0.00020273,2]
[313076514,1706723444157,-500.0,0.00020273,2]
[313076515,1706723444166,-1104.21,0.00020273,2]
[313076516,1706723444175,-978.97407377,0.00020273,2]
[313076517,1706723444274,-116.68592623,0.00020273,2]
[313076518,1706723444284,-1820.76,0.00020273,2]
[313076519,1706723444294,-500.0,0.00020273,2]
[313076520,1706723444304,-3598.82,0.00020273,2]
[313076521,1706723444313,-381.07651183,0.00020273,2]
[313076522,1706723444323,-500.0,0.00020547,2]
[313076523,1706723444331,-500.0,0.00020547,2]
[313076524,1706723444341,-723.07,0.00020547,2]
[313076525,1706723444350,-637.4,0.00020547,2]
[313076526,1706723444359,-500.0,0.00020547,2]
[313076527,1706723444369,-500.0,0.00020547,2]
[313076528,1706723444378,-500.0,0.00020547,2]
[313076529,1706723444387,-581.45,0.00020547,2]
[313076530,1706723444397,-151.0,0.00020547,2]
[313076531,1706723444406,-590.37,0.00020547,2]
[313076532,1706723444415,-151.0,0.00020547,2]
[313076533,1706723444425,-315.225861,0.00020547,2]
[313076534,1706723444434,-315.225861,0.00020547,2]
[313076535,1706723444443,-507.49216995,0.00020547,2]
[313076536,1706723444452,-500.0,0.00020547,2]
[313076537,1706723444461,-998.61,0.00020547,2]
[313076538,1706723444470,-1165.88,0.00020547,2]
[313076539,1706723444479,-500.0,0.00020547,2]
[313076540,1706723444488,-500.0,0.00020547,2]
[313076541,1706723444498,-620.94,0.00020547,2]
[313076542,1706723444507,-219.066536,0.00020547,2]
[313076543,1706723444516,-219.066536,0.00020547,2]
[313076544,1706723444525,-882.07,0.00020547,2]
[313076545,1706723444535,-6433.41,0.00020547,2]
[313076546,1706723444544,-618.8,0.00020547,2]
[313076547,1706723444553,-500.0,0.00020547,2]
[313076548,1706723444643,-655.97,0.00020547,2]
[313076549,1706723444653,-558.02,0.00020547,2]
[313076550,1706723444662,-9545.75,0.00020547,2]
[313076551,1706723444671,-449.15887531,0.00020547,2]
[313076552,1706723444681,-500.0,0.00020547,2]
[313076553,1706723444690,-500.0,0.00020547,2]
[313076554,1706723444699,-500.0,0.00020547,2]
[313076555,1706723444708,-2718.43,0.00020547,2]
[313076556,1706723444717,-500.0,0.00020547,2]
[313076557,1706723444726,-940.88,0.00020547,2]
[313076558,1706723444735,-976.92,0.00020547,2]
[313076559,1706723444744,-1815.87,0.00020547,2]
[313076560,1706723444754,-2514.62,0.00020547,2]
[313076561,1706723444763,-3030.0,0.00020547,2]
[313076562,1706723444772,-2230.8,0.00020547,2]
[313076563,1706723444782,-500.0,0.00020547,2]
[313076564,1706723444791,-500.0,0.00020547,2]
[313076565,1706723444800,-1461.53,0.00020547,2]
[313076566,1706723444810,-1272.75,0.00020547,2]
[313076567,1706723444821,-1367.79,0.00020547,2]
[313076568,1706723444831,-522.02,0.00020547,2]
[313076569,1706723444840,-500.0,0.00020547,2]
[313076570,1706723444849,-1174.04,0.00020547,2]
[313076571,1706723444859,-6739.26,0.00020547,2]
[313076572,1706723444871,-1214.85,0.00020547,2]
[313076573,1706723444880,-11711.61956209,0.00020547,2]
[313076574,1706723444958,-1034.39,0.00019178,2]
[313076575,1706723444967,-853.25989921,0.00019452,2]
[313076595,1706723446178,-166.94158022,0.0001555,2]
[313076596,1706723446187,-661.78686529,0.00019177,2]
[313076597,1706723446196,-1599.19353196,0.00019178,2]
[313076598,1706723446237,-1324.00646804,0.00019178,2]
[313076600,1706723446247,-181.13010079,0.00019452,2]